[Event "FIDE World Junior U20-ch Girls 2025"]
[Site "Petrovac"]
[Date "2025.03.03"]
[Round "7.14"]
[White "Mungunzul, Bat-Erdene"]
[Black "Tashkinova, Sofiia"]
[Result "1-0"]
[Annotator "NA COMBH"]
[ECO "E94"]
[WhiteElo "2268"]
[BlackElo "2197"]
[PlyCount "85"]
[EventDate "2025.02.23"]
[EventType "swiss"]
[EventCountry "MNE"]
[SourceTitle "playchess.com"]
[Source "ChessBase"]
[SourceQuality "1"]
[TimeControl "40/5400+30:1800+30"]

1. d4 {[%emt 0:00:01]} Nf6 {[%emt 0:03:11]} 2. c4 {[%emt 0:00:07]} g6 {[%emt 0:00:35]} 3. Nc3 {[%emt 0:00:10]} Bg7 {[%emt 0:00:06]} 4. e4 {[%emt 0:00:05]} d6 {[%emt 0:00:06]} 5. Nf3 {[%emt 0:00:05]} O-O {[%emt 0:00:06]} 6. Be2 {[%emt 0:00:04]} Na6 {[%emt 0:00:07]} 7. O-O {[%emt 0:00:18]} e5 {[%emt 0:00:34]} 8. Be3 {[%emt 0:00:24]} Qe7 {[%emt 0:00:38]} 9. d5 {[%emt 0:09:19]} Ng4 {[%emt 0:01:19]} 10. Bg5 {[%emt 0:00:53]} f6 {[%emt 0:00:18]} 11. Bh4 {[%emt 0:02:26]} g5 {[%emt 0:00:18]} 12. Bg3 {[%emt 0:00:14]} f5 {[%emt 0:00:31]} 13. Nd2 {[%emt 0:08:22]} Nf6 {[%emt 0:03:03]} 14. f3 {[%emt 0:05:27]} f4 {[%emt 0:02:10]} 15. Bf2 {[%emt 0:00:27]} h5 {[%emt 0:02:33]} 16. Re1 {[%emt 0:00:43]} Qf7 {[%emt 0:01:48]} 17. Nf1 {[%emt 0:01:46]} Qg6 {[%emt 0:02:06]} 18. b4 {[%emt 0:03:20]} g4 {[%emt 0:13:29]} 19. c5 {[%emt 0:03:22]} Nh7 {[%emt 0:00:00]} 20. Kh1 {[%emt 0:07:33]} gxf3 {[%emt 0:08:18]} 21. Bxf3 {[%emt 0:00:35]} Bg4 {[%emt 0:02:38]} 22. a3 {[%emt 0:02:47]} Bf6 {[%emt 0:11:21]} 23. Nd2 {[%emt 0:01:40]} Rf7 {[%emt 0:01:12]} 24. Rg1 {[%emt 0:03:41]} Rg7 {[%emt 0:04:46]} 25. Qe2 {[%emt 0:01:28]} dxc5 {[%emt 0:04:01]} 26. bxc5 {[%emt 0:01:41]} Be7 {[%emt 0:02:18]} 27. Qc4 {[%emt 0:01:49]} Kh8 {[%emt 0:04:41]} 28. c6 {[%emt 0:00:59]} Bc8 {[%emt 0:02:53]} 29. cxb7 {[%emt 0:00:27]} Bxb7 {[%emt 0:00:11]} 30. Rab1 {[%emt 0:00:07]} Bc8 {[%emt 0:00:43]} 31. Nb5 {[%emt 0:00:47]} Bf8 {[%emt 0:02:10]} 32. Qc3 {[%emt 0:11:54]} Qe8 {[%emt 0:05:52]} 33. Nc4 {[%emt 0:02:38]} Bd7 {[%emt 0:01:00]} 34. a4 {[%emt 0:01:54]} Nf6 {[%emt 0:02:47]} 35. Nxe5 {[%emt 0:02:38]} Ng4 {[%emt 0:01:19]} 36. Bd4 {[%emt 0:06:12]} Bc5 {[%emt 0:06:48]} 37. Bxg4 {[%emt 0:03:59]} hxg4 {[%emt 0:03:16]} 38. Nxd7 {[%emt 0:00:25]} Bxd4 {[%emt 0:00:55]} 39. Nxd4 {[%emt 0:00:07]} Rxd7 {[%emt 0:01:42]} 40. Ne6+ {[%emt 0:00:08]} Kg8 {[%emt 0:00:53]} 41. Rbf1 {[%emt 0:30:06]} Qh5 {[%emt 0:33:28]} 42. Rxf4 {[%emt 0:00:44]} Qh4 {[%emt 0:02:55] Check Result:#6} 43. Rgf1 {[%emt 0:00:29]} 1-0

[Event "FIDE World Junior U20-ch Girls 2025"]
[Site "Petrovac"]
[Date "2025.03.03"]
[Round "7.15"]
[White "Savitha Shri B"]
[Black "Wang, Qinxuanyi"]
[Result "1/2-1/2"]
[Annotator "RC"]
[ECO "A07"]
[WhiteElo "2332"]
[BlackElo "2165"]
[PlyCount "140"]
[EventDate "2025.02.23"]
[EventType "swiss"]
[EventCountry "MNE"]
[SourceTitle "playchess.com"]
[Source "ChessBase"]
[SourceQuality "1"]
[TimeControl "40/5400+30:1800+30"]

1. Nf3 {[%emt 0:06:08]} d5 {[%emt 0:00:07]} 2. g3 {[%emt 0:00:10]} Bg4 {[%emt 0:00:53]} 3. Bg2 {[%emt 0:00:27]} c6 {[%emt 0:00:10]} 4. O-O {[%emt 0:00:06]} e6 {[%emt 0:01:54]} 5. h3 {[%emt 0:00:05]} Bh5 {[%emt 0:03:22]} 6. d4 {[%emt 0:00:06]} Nd7 {[%emt 0:01:25]} 7. Ne5 {[%emt 0:03:30]} Nxe5 {[%emt 0:02:12]} 8. dxe5 {[%emt 0:00:09]} h6 {[%emt 0:03:33]} 9. c4 {[%emt 0:03:59]} f6 {[%emt 0:18:15]} 10. cxd5 {[%emt 0:01:52]} exd5 {[%emt 0:01:59]} 11. g4 {[%emt 0:19:18]} Bf7 {[%emt 0:05:00]} 12. Bf4 {[%emt 0:04:10]} fxe5 {[%emt 0:05:21]} 13. Bxe5 {[%emt 0:01:54]} Nf6 {[%emt 0:00:24]} 14. Qb3 {[%emt 0:06:52]} Qb6 {[%emt 0:07:08]} 15. Qg3 {[%emt 0:06:29]} Be7 {[%emt 0:03:12]} 16. Nc3 {[%emt 0:02:34]} O-O {[%emt 0:01:56]} 17. Rad1 {[%emt 0:01:51]} Rfe8 {[%emt 0:05:22]} 18. h4 {[%emt 0:04:12]} Nd7 {[%emt 0:03:34]} 19. Bd4 {[%emt 0:03:49]} Qd8 {[%emt 0:04:09]} 20. g5 {[%emt 0:01:00]} hxg5 {[%emt 0:01:18]} 21. hxg5 {[%emt 0:03:37]} Bxg5 {[%emt 0:00:09]} 22. e4 {[%emt 0:00:04]} Bf6 {[%emt 0:16:26]} 23. exd5 {[%emt 0:01:27]} cxd5 {[%emt 0:02:34]} 24. Bxd5 {[%emt 0:20:04]} Bxd5 {[%emt 0:00:08]} 25. Nxd5 {[%emt 0:00:20]} Bxd4 {[%emt 0:00:18]} 26. Rxd4 {[%emt 0:00:04]} Nf6 {[%emt 0:00:22]} 27. Qb3 {[%emt 0:00:20]} Nxd5 {[%emt 0:03:07]} 28. Rxd5 {[%emt 0:00:04]} Qb6 {[%emt 0:00:38]} 29. Rb5+ {[%emt 0:00:04]} Qe6 {[%emt 0:00:03]} 30. Qxe6+ {[%emt 0:04:35]} Rxe6 {[%emt 0:00:05]} 31. Rxb7 {[%emt 0:00:02]} Rb6 {[%emt 0:03:44]} 32. Rxb6 {[%emt 0:00:07]} axb6 {[%emt 0:00:04]} 33. a3 {[%emt 0:00:51]} Rd8 {[%emt 0:01:29]} 34. Re1 {[%emt 0:02:16]} Kf7 {[%emt 0:01:02]} 35. Re5 {[%emt 0:00:31]} Rd6 {[%emt 0:00:12]} 36. Kg2 {[%emt 0:01:10]} Kf6 {[%emt 0:00:17]} 37. Rb5 {[%emt 0:00:04]} Re6 {[%emt 0:02:51]} 38. Kf3 {[%emt 0:00:15]} g5 {[%emt 0:00:46]} 39. Kg4 {[%emt 0:02:25]} Re4+ {[%emt 0:00:11]} 40. Kg3 {[%emt 0:00:58]} Re6 {[%emt 0:00:24]} 41. a4 {[%emt 0:31:45]} Kg6 {[%emt 0:31:14]} 42. b3 {[%emt 0:00:00]} Rf6 {[%emt 0:00:00]} 43. Rd5 {[%emt 0:00:00]} Re6 {[%emt 0:00:00]} 44. f3 {[%emt 0:00:00]} Kh5 {[%emt 0:00:00]} 45. Rb5 {[%emt 0:00:00]} Rf6 {[%emt 0:00:00]} 46. Re5 {[%emt 0:00:00]} Kg6 {[%emt 0:00:00]} 47. b4 {[%emt 0:00:00]} Kh5 {[%emt 0:00:00]} 48. Rb5 {[%emt 0:00:00]} Kg6 {[%emt 0:00:00]} 49. Rd5 {[%emt 0:00:00]} Kh5 {[%emt 0:00:00]} 50. Rd4 {[%emt 0:00:00]} Rc6 {[%emt 0:00:00]} 51. Re4 {[%emt 0:00:00]} Rc3 {[%emt 0:00:00]} 52. Re5 {[%emt 0:00:00]} Rb3 {[%emt 0:00:00]} 53. Rb5 {[%emt 0:00:24]} Ra3 {[%emt 0:00:00]} 54. Kf2 {[%emt 0:00:20]} Kh4 {[%emt 0:00:28]} 55. Rxb6 {[%emt 0:00:12]} Ra2+ {[%emt 0:00:03]} 56. Ke3 {[%emt 0:00:11]} Rxa4 {[%emt 0:00:06]} 57. Ke4 {[%emt 0:02:05]} Kg3 {[%emt 0:00:27]} 58. Rb5 {[%emt 0:00:16]} Kf2 {[%emt 0:00:35]} 59. Rb8 {[%emt 0:01:42]} Kg3 {[%emt 0:00:36]} 60. Rb7 {[%emt 0:01:00]} Kf2 {[%emt 0:02:05]} 61. Rb5 {[%emt 0:00:10]} Ke2 {[%emt 0:00:37]} 62. Rb8 {[%emt 0:00:47]} Kf2 {[%emt 0:01:22]} 63. Rb6 {[%emt 0:01:52]} Kg3 {[%emt 0:00:38]} 64. Rb8 {[%emt 0:00:27]} Kf2 {[%emt 0:00:06]} 65. f4 {[%emt 0:00:58]} g4 {[%emt 0:00:06]} 66. f5 {[%emt 0:00:03]} g3 {[%emt 0:00:03]} 67. f6 {[%emt 0:00:04]} Ra7 {[%emt 0:00:06]} 68. Rc8 {[%emt 0:01:31]} g2 {[%emt 0:00:45]} 69. Rc2+ {[%emt 0:00:03]} Kg3 {[%emt 0:00:26]} 70. Rc1 {[%emt 0:01:16]} Rb7 {[%emt 0:00:48]} 1/2-1/2

[Event "FIDE World Junior U20-ch Girls 2025"]
[Site "Petrovac"]
[Date "2025.03.03"]
[Round "7.16"]
[White "Kirtadze, Anastasia"]
[Black "Nurgaliyeva, Zarina"]
[Result "0-1"]
[Annotator "NA COMBH"]
[ECO "C45"]
[WhiteElo "2218"]
[BlackElo "2265"]
[PlyCount "60"]
[EventDate "2025.02.23"]
[EventType "swiss"]
[EventCountry "MNE"]
[SourceTitle "playchess.com"]
[Source "ChessBase"]
[SourceQuality "1"]
[TimeControl "40/5400+30:1800+30"]

1. e4 {[%emt 0:00:02]} e5 {[%emt 0:00:05]} 2. Nf3 {[%emt 0:00:04]} Nc6 {[%emt 0:00:05]} 3. d4 {[%emt 0:00:06]} exd4 {[%emt 0:00:10]} 4. Nxd4 {[%emt 0:00:05]} Nf6 {[%emt 0:00:06]} 5. Nxc6 {[%emt 0:00:20]} bxc6 {[%emt 0:00:05]} 6. e5 {[%emt 0:00:06]} Qe7 {[%emt 0:00:09]} 7. Qe2 {[%emt 0:00:08]} Nd5 {[%emt 0:00:08]} 8. h4 {[%emt 0:01:19]} Qe6 {[%emt 0:00:18]} 9. c4 {[%emt 0:09:15]} Nb6 {[%emt 0:00:17]} 10. Nc3 {[%emt 0:03:02]} Bb4 {[%emt 0:02:50]} 11. Bd2 {[%emt 0:03:46]} Ba6 {[%emt 0:03:06]} 12. b3 {[%emt 0:01:25]} O-O {[%emt 0:01:37]} 13. f4 {[%emt 0:20:41]} f6 {[%emt 0:10:24]} 14. Ne4 {[%emt 0:01:21]} Bxd2+ {[%emt 0:04:13]} 15. Qxd2 {[%emt 0:05:14]} Qe7 {[%emt 0:05:12]} 16. c5 {[%emt 0:12:43]} Bxf1 {[%emt 0:00:44]} 17. cxb6 {[%emt 0:00:05]} Ba6 {[%emt 0:02:19]} 18. bxc7 {[%emt 0:21:26]} d5 {[%emt 0:18:41]} 19. Qa5 {[%emt 0:00:00]} dxe4 {[%emt 0:21:00]} 20. Qxa6 {[%emt 0:00:00]} Qxc7 {[%emt 0:02:48]} 21. Qc4+ {[%emt 0:00:00]} Kh8 {[%emt 0:00:09]} 22. Qxe4 {[%emt 0:00:00]} fxe5 {[%emt 0:00:06]} 23. fxe5 {[%emt 0:00:00]} Rad8 {[%emt 0:03:21]} 24. Rf1 {[%emt 0:00:41]} Qa5+ {[%emt 0:09:11]} 25. b4 {[%emt 0:01:14]} Qa3 {[%emt 0:00:12]} 26. Rxf8+ {[%emt 0:11:01]} Rxf8 {[%emt 0:00:01]} 27. Rb1 {[%emt 0:04:08]} Qg3+ {[%emt 0:00:39]} 28. Kd1 {[%emt 0:01:09]} Rf1+ {[%emt 0:00:08]} 29. Kc2 {[%emt 0:00:18]} Rf2+ {[%emt 0:00:06]} 30. Kd1 {[%emt 0:00:12] Check Result:-#30} Qc3 {[%emt 0:00:24]} 0-1

[Event "FIDE World Junior U20-ch Girls 2025"]
[Site "Petrovac"]
[Date "2025.03.03"]
[Round "7.17"]
[White "Kaliakhmet, Elnaz"]
[Black "Zeliantsova, Kseniya"]
[Result "1-0"]
[Annotator "NA"]
[ECO "B07"]
[WhiteElo "2242"]
[BlackElo "1999"]
[PlyCount "79"]
[EventDate "2025.02.23"]
[EventType "swiss"]
[EventCountry "MNE"]
[SourceTitle "playchess.com"]
[Source "ChessBase"]
[SourceQuality "1"]
[TimeControl "40/5400+30:1800+30"]

1. d4 {[%emt 0:00:02]} d6 {[%emt 0:00:07]} 2. e4 {[%emt 0:00:07]} Nf6 {[%emt 0:00:10]} 3. Nc3 {[%emt 0:00:06]} g6 {[%emt 0:00:13]} 4. Be3 {[%emt 0:00:06]} c6 {[%emt 0:00:43]} 5. Qd2 {[%emt 0:00:56]} b5 {[%emt 0:01:20]} 6. Bd3 {[%emt 0:00:32]} Bb7 {[%emt 0:03:25]} 7. Nf3 {[%emt 0:02:23]} Bg7 {[%emt 0:03:06]} 8. Bh6 {[%emt 0:23:18]} O-O {[%emt 0:01:35]} 9. h4 {[%emt 0:01:00]} Bxh6 {[%emt 0:17:16]} 10. Qxh6 {[%emt 0:00:04]} Ng4 {[%emt 0:00:03]} 11. Qf4 {[%emt 0:22:09]} h5 {[%emt 0:00:48]} 12. e5 {[%emt 0:02:01]} Na6 {[%emt 0:10:11]} 13. Qg5 {[%emt 0:04:18]} e6 {[%emt 0:01:55]} 14. exd6 {[%emt 0:02:08]} Nb4 {[%emt 0:16:17]} 15. Ne4 {[%emt 0:07:18]} Qb6 {[%emt 0:11:46]} 16. Nc5 {[%emt 0:05:03]} Nxd3+ {[%emt 0:00:24]} 17. Nxd3 {[%emt 0:03:08]} Rad8 {[%emt 0:04:33]} 18. Nde5 {[%emt 0:09:58]} Nxe5 {[%emt 0:04:29]} 19. Qxe5 {[%emt 0:00:18]} Bc8 {[%emt 0:06:05]} 20. Qf4 {[%emt 0:11:36]} Kg7 {[%emt 0:00:27]} 21. Nd2 {[%emt 0:01:10]} f6 {[%emt 0:02:08]} 22. O-O-O {[%emt 0:00:29]} c5 {[%emt 0:02:34]} 23. dxc5 {[%emt 0:00:06]} Qxc5 {[%emt 0:00:04]} 24. Nb3 {[%emt 0:01:11]} Qb6 {[%emt 0:01:02]} 25. f3 {[%emt 0:00:56]} Bb7 {[%emt 0:03:28]} 26. Rhg1 {[%emt 0:02:04]} Bd5 {[%emt 0:02:53]} 27. g4 {[%emt 0:00:06]} hxg4 {[%emt 0:02:04]} 28. Qxg4 {[%emt 0:00:25]} Qe3+ {[%emt 0:00:04]} 29. Kb1 {[%emt 0:00:04]} Qh6 {[%emt 0:00:06]} 30. h5 {[%emt 0:00:31]} g5 {[%emt 0:02:18]} 31. f4 {[%emt 0:01:11]} Rxd6 {[%emt 0:00:25]} 32. fxg5 {[%emt 0:00:07]} fxg5 {[%emt 0:00:02]} 33. Qb4 {[%emt 0:01:36]} Rfd8 {[%emt 0:00:59]} 34. Rdf1 {[%emt 0:00:29]} Qxh5 {[%emt 0:01:11]} 35. Qd4+ {[%emt 0:00:06]} Kh7 {[%emt 0:01:37]} 36. Qe5 {[%emt 0:00:11]} Bxb3 {[%emt 0:00:27]} 37. axb3 {[%emt 0:00:41]} Rd1+ {[%emt 0:00:24]} 38. Ka2 {[%emt 0:00:01]} R8d6 {[%emt 0:00:59]} 39. Rxd1 {[%emt 0:00:39]} Rxd1 {[%emt 0:01:45]} 40. Rxg5 {[%emt 0:00:23]} 1-0

[Event "FIDE World Junior U20-ch Girls 2025"]
[Site "Petrovac"]
[Date "2025.03.03"]
[Round "7.18"]
[White "Imomkuzieva, Nilufarkhon"]
[Black "Mikheeva, Galina"]
[Result "1/2-1/2"]
[Annotator "NA COMBH"]
[ECO "E04"]
[WhiteElo "1983"]
[BlackElo "2238"]
[PlyCount "80"]
[EventDate "2025.02.23"]
[EventType "swiss"]
[EventCountry "MNE"]
[SourceTitle "playchess.com"]
[Source "ChessBase"]
[SourceQuality "1"]
[TimeControl "40/5400+30:1800+30"]

1. d4 {[%emt 0:00:03]} d5 {[%emt 0:00:08]} 2. c4 {[%emt 0:00:06]} e6 {[%emt 0:00:04]} 3. Nf3 {[%emt 0:00:03]} Nf6 {[%emt 0:00:18]} 4. g3 {[%emt 0:00:05]} dxc4 {[%emt 0:00:39]} 5. Bg2 {[%emt 0:00:04]} Bb4+ {[%emt 0:00:20]} 6. Bd2 {[%emt 0:00:59]} a5 {[%emt 0:00:07]} 7. Qc2 {[%emt 0:00:05]} Bxd2+ {[%emt 0:00:05]} 8. Qxd2 {[%emt 0:00:05]} c6 {[%emt 0:00:07]} 9. a4 {[%emt 0:00:20]} Ne4 {[%emt 0:01:36]} 10. Qc1 {[%emt 0:00:18]} Nd6 {[%emt 0:01:33]} 11. Nbd2 {[%emt 0:00:33]} b5 {[%emt 0:01:54]} 12. Ne5 {[%emt 0:00:56]} Bb7 {[%emt 0:03:00]} 13. b3 {[%emt 0:01:45]} f6 {[%emt 0:05:27]} 14. Nef3 {[%emt 0:04:53]} cxb3 {[%emt 0:05:46]} 15. Nxb3 {[%emt 0:01:42]} Nd7 {[%emt 0:09:02]} 16. Nfd2 {[%emt 0:00:55]} b4 {[%emt 0:04:05]} 17. O-O {[%emt 0:16:22]} Qe7 {[%emt 0:09:18]} 18. Bxc6 {[%emt 0:04:40]} Bxc6 {[%emt 0:00:43]} 19. Qxc6 {[%emt 0:00:05]} O-O {[%emt 0:01:56]} 20. Rfc1 {[%emt 0:03:12]} Rfc8 {[%emt 0:16:45]} 21. Qf3 {[%emt 0:01:18]} Nb6 {[%emt 0:00:44]} 22. Rc5 {[%emt 0:03:10]} Qd7 {[%emt 0:13:52]} 23. Rxc8+ {[%emt 0:09:23]} Rxc8 {[%emt 0:00:54]} 24. Nc5 {[%emt 0:00:13]} Qf7 {[%emt 0:05:33]} 25. Ndb3 {[%emt 0:02:28]} Ndc4 {[%emt 0:00:56]} 26. e4 {[%emt 0:04:01]} Qe7 {[%emt 0:02:56]} 27. Qe2 {[%emt 0:01:06]} Qe8 {[%emt 0:04:17]} 28. Rc1 {[%emt 0:07:36]} Na3 {[%emt 0:00:06]} 29. Qa6 {[%emt 0:01:03]} Nxa4 {[%emt 0:01:49]} 30. Qxa5 {[%emt 0:00:25]} Nxc5 {[%emt 0:02:02]} 31. dxc5 {[%emt 0:00:59]} Rb8 {[%emt 0:04:56]} 32. c6 {[%emt 0:01:39]} Nb5 {[%emt 0:00:03]} 33. c7 {[%emt 0:14:48]} Rc8 {[%emt 0:00:00]} 34. Rc5 {[%emt 0:00:34]} Nd6 {[%emt 0:00:10]} 35. Qxb4 {[%emt 0:00:50]} Qd7 {[%emt 0:00:22]} 36. Rc1 {[%emt 0:00:40]} Ne8 {[%emt 0:01:28]} 37. Nc5 {[%emt 0:02:26]} Qd6 {[%emt 0:01:50]} 38. Qa4 {[%emt 0:03:15]} Qxc7 {[%emt 0:01:05]} 39. Nd3 {[%emt 0:00:09]} Qd8 {[%emt 0:00:08]} 40. Rxc8 {[%emt 0:00:15] Check Result:0.08} Qxc8 {[%emt 0:00:05]} 1/2-1/2

[Event "FIDE World Junior U20-ch Girls 2025"]
[Site "Petrovac"]
[Date "2025.03.03"]
[Round "7.19"]
[White "Kanyamarala, Trisha"]
[Black "Peglau, Charis"]
[Result "1-0"]
[Annotator "NA"]
[ECO "E12"]
[WhiteElo "2178"]
[BlackElo "2203"]
[PlyCount "79"]
[EventDate "2025.02.23"]
[EventType "swiss"]
[EventCountry "MNE"]
[SourceTitle "playchess.com"]
[Source "ChessBase"]
[SourceQuality "1"]
[TimeControl "40/5400+30:1800+30"]

1. d4 {[%emt 0:00:07]} Nf6 {[%emt 0:00:08]} 2. c4 {[%emt 0:00:06]} e6 {[%emt 0:00:05]} 3. Nf3 {[%emt 0:00:09]} b6 {[%emt 0:00:12]} 4. a3 {[%emt 0:01:15]} Ba6 {[%emt 0:00:11]} 5. Qc2 {[%emt 0:01:24]} Bb7 {[%emt 0:00:12]} 6. Nc3 {[%emt 0:04:29]} c5 {[%emt 0:00:15]} 7. e4 {[%emt 0:05:02]} cxd4 {[%emt 0:05:22]} 8. Nxd4 {[%emt 0:00:11]} Bc5 {[%emt 0:00:37]} 9. Nb3 {[%emt 0:05:32]} Nc6 {[%emt 0:00:42]} 10. Bf4 {[%emt 0:13:20]} O-O {[%emt 0:42:53]} 11. Bd3 {[%emt 0:14:24]} e5 {[%emt 0:08:23]} 12. Bg5 {[%emt 0:01:22]} Nd4 {[%emt 0:01:55]} 13. Nxd4 {[%emt 0:01:24]} Bxd4 {[%emt 0:00:02]} 14. Nd5 {[%emt 0:06:46]} Bxd5 {[%emt 0:01:17]} 15. cxd5 {[%emt 0:04:00]} Rc8 {[%emt 0:02:56]} 16. Qe2 {[%emt 0:00:53]} Qe7 {[%emt 0:01:46]} 17. O-O {[%emt 0:02:15]} h6 {[%emt 0:06:03]} 18. Bh4 {[%emt 0:01:56]} Rc5 {[%emt 0:00:46]} 19. Ba6 {[%emt 0:04:37]} Qd6 {[%emt 0:02:15]} 20. Rac1 {[%emt 0:10:33]} Nh7 {[%emt 0:09:23]} 21. b4 {[%emt 0:02:16]} Rxc1 {[%emt 0:00:09]} 22. Rxc1 {[%emt 0:00:05]} Rb8 {[%emt 0:06:16]} 23. Bb5 {[%emt 0:05:28]} a5 {[%emt 0:01:40]} 24. Rc4 {[%emt 0:05:25]} axb4 {[%emt 0:00:44]} 25. axb4 {[%emt 0:00:11]} Ra8 {[%emt 0:01:19]} 26. h3 {[%emt 0:00:15]} Nf8 {[%emt 0:00:53]} 27. Bg3 {[%emt 0:01:56]} Qf6 {[%emt 0:01:13]} 28. Kh2 {[%emt 0:01:20]} Kh7 {[%emt 0:02:04]} 29. Rc2 {[%emt 0:01:44]} Ra1 {[%emt 0:01:38]} 30. Rc8 {[%emt 0:01:19]} Qe7 {[%emt 0:00:46]} 31. Qf3 {[%emt 0:01:20]} Kg8 {[%emt 0:01:10]} 32. Qf5 {[%emt 0:02:18]} d6 {[%emt 0:02:20]} 33. Bh4 {[%emt 0:02:10]} g5 {[%emt 0:00:33]} 34. Re8 {[%emt 0:00:33]} Qc7 {[%emt 0:00:29]} 35. Bxg5 {[%emt 0:00:22]} Bxf2 {[%emt 0:00:35]} 36. Rxf8+ {[%emt 0:00:53]} Kxf8 {[%emt 0:00:19]} 37. Bxh6+ {[%emt 0:00:06]} Ke7 {[%emt 0:00:12]} 38. Qg5+ {[%emt 0:00:24]} f6 {[%emt 0:00:06]} 39. Qg7+ {[%emt 0:00:05]} Kd8 {[%emt 0:00:06]} 40. Qf8# {[%emt 0:00:05]} 1-0

[Event "FIDE World Junior U20-ch Girls 2025"]
[Site "Petrovac"]
[Date "2025.03.03"]
[Round "7.20"]
[White "Smietanska, Wiktoria"]
[Black "Zelbova, Lada"]
[Result "1-0"]
[Annotator "NA COMBH"]
[ECO "B90"]
[WhiteElo "2170"]
[BlackElo "1994"]
[PlyCount "91"]
[EventDate "2025.02.23"]
[EventType "swiss"]
[EventCountry "MNE"]
[SourceTitle "playchess.com"]
[Source "ChessBase"]
[SourceQuality "1"]
[TimeControl "40/5400+30:1800+30"]

1. e4 {[%emt 0:00:03]} c5 {[%emt 0:00:06]} 2. Nf3 {[%emt 0:00:06]} d6 {[%emt 0:00:06]} 3. d4 {[%emt 0:00:05]} cxd4 {[%emt 0:00:06]} 4. Nxd4 {[%emt 0:00:04]} Nf6 {[%emt 0:00:06]} 5. Nc3 {[%emt 0:00:07]} a6 {[%emt 0:00:05]} 6. h3 {[%emt 0:00:11]} b5 {[%emt 0:00:12]} 7. g4 {[%emt 0:05:59]} Bb7 {[%emt 0:00:35]} 8. Bg2 {[%emt 0:02:27]} e6 {[%emt 0:02:13]} 9. g5 {[%emt 0:15:13]} Nfd7 {[%emt 0:01:27]} 10. a3 {[%emt 0:01:39]} Be7 {[%emt 0:05:19]} 11. h4 {[%emt 0:01:44]} Nc6 {[%emt 0:03:45]} 12. Nxc6 {[%emt 0:15:50]} Bxc6 {[%emt 0:03:49]} 13. Be3 {[%emt 0:00:14]} O-O {[%emt 0:09:40]} 14. O-O {[%emt 0:08:30]} Ne5 {[%emt 0:18:07]} 15. b3 {[%emt 0:03:57]} Qc7 {[%emt 0:04:35]} 16. f4 {[%emt 0:02:00]} Nd7 {[%emt 0:00:33]} 17. Ne2 {[%emt 0:10:44]} Nc5 {[%emt 0:18:11]} 18. Ng3 {[%emt 0:01:38]} Rfd8 {[%emt 0:04:56]} 19. Qd4 {[%emt 0:05:53]} d5 {[%emt 0:03:19]} 20. e5 {[%emt 0:01:03]} Ne4 {[%emt 0:04:07]} 21. Nxe4 {[%emt 0:06:27]} dxe4 {[%emt 0:00:09]} 22. Qb2 {[%emt 0:00:40]} Rab8 {[%emt 0:01:59]} 23. Rfe1 {[%emt 0:03:01]} Bd5 {[%emt 0:01:06]} 24. Rac1 {[%emt 0:04:28]} a5 {[%emt 0:01:09]} 25. Bd4 {[%emt 0:03:15]} Qb7 {[%emt 0:01:09]} 26. b4 {[%emt 0:01:17]} axb4 {[%emt 0:04:27]} 27. axb4 {[%emt 0:00:02]} Ra8 {[%emt 0:00:56]} 28. Ra1 {[%emt 0:00:29]} Rxa1 {[%emt 0:03:28]} 29. Rxa1 {[%emt 0:00:08]} Ra8 {[%emt 0:00:59]} 30. c3 {[%emt 0:01:04]} g6 {[%emt 0:00:49]} 31. Bf1 {[%emt 0:02:51]} Rxa1 {[%emt 0:04:36]} 32. Qxa1 {[%emt 0:00:02]} Bd8 {[%emt 0:00:49]} 33. Qa7 {[%emt 0:01:01]} Qxa7 {[%emt 0:00:47]} 34. Bxa7 {[%emt 0:00:03]} Bc6 {[%emt 0:00:10]} 35. Bc5 {[%emt 0:00:43]} e3 {[%emt 0:01:29]} 36. Bd3 {[%emt 0:00:51]} Kg7 {[%emt 0:00:22]} 37. Kf1 {[%emt 0:01:07]} h6 {[%emt 0:00:23]} 38. Ke2 {[%emt 0:00:41]} hxg5 {[%emt 0:00:13]} 39. hxg5 {[%emt 0:00:21]} Bc7 {[%emt 0:01:15]} 40. Kxe3 {[%emt 0:00:30]} Bd7 {[%emt 0:01:02]} 41. Kd4 {[%emt 0:31:46]} Bd8 {[%emt 0:31:40]} 42. c4 {[%emt 0:00:00]} bxc4 {[%emt 0:00:00]} 43. Kxc4 {[%emt 0:00:00]} Bc8 {[%emt 0:00:00]} 44. Be4 {[%emt 0:00:00]} Kg8 {[%emt 0:00:00]} 45. Kb5 {[%emt 0:00:00]} Bd7+ {[%emt 0:00:00] Check Result:21.18} 46. Ka6 {[%emt 0:00:00]} 1-0

[Event "FIDE World Junior U20-ch Girls 2025"]
[Site "Petrovac"]
[Date "2025.03.03"]
[Round "7.21"]
[White "Yildiz, Elif Zeren"]
[Black "Braeutigam, Katerina"]
[Result "1-0"]
[Annotator "NA COMBH"]
[ECO "B10"]
[WhiteElo "2160"]
[BlackElo "1981"]
[PlyCount "79"]
[EventDate "2025.02.23"]
[EventType "swiss"]
[EventCountry "MNE"]
[SourceTitle "playchess.com"]
[Source "ChessBase"]
[SourceQuality "1"]
[TimeControl "40/5400+30:1800+30"]

1. e4 {[%emt 0:00:02]} c6 {[%emt 0:00:05]} 2. Nf3 {[%emt 0:00:13]} g6 {[%emt 0:00:18]} 3. d4 {[%emt 0:00:20]} Bg7 {[%emt 0:00:06]} 4. Nc3 {[%emt 0:00:16]} d5 {[%emt 0:00:10]} 5. h3 {[%emt 0:00:06]} Nh6 {[%emt 0:00:49]} 6. Bf4 {[%emt 0:00:20]} f6 {[%emt 0:00:32]} 7. Qd2 {[%emt 0:00:33]} Nf7 {[%emt 0:00:14]} 8. O-O-O {[%emt 0:00:36]} e5 {[%emt 0:15:26]} 9. Be3 {[%emt 0:06:23]} dxe4 {[%emt 0:06:33]} 10. Nxe4 {[%emt 0:00:02]} f5 {[%emt 0:05:14]} 11. Neg5 {[%emt 0:13:12]} f4 {[%emt 0:12:31]} 12. Bxf4 {[%emt 0:01:36]} exf4 {[%emt 0:16:42]} 13. Re1+ {[%emt 0:00:29]} Kf8 {[%emt 0:03:07]} 14. Nxf7 {[%emt 0:00:09]} Qf6 {[%emt 0:03:39]} 15. Qb4+ {[%emt 0:00:47]} Kg8 {[%emt 0:03:57]} 16. Nxh8 {[%emt 0:02:05]} Bf8 {[%emt 0:01:05]} 17. Re8 {[%emt 0:07:15]} Nd7 {[%emt 0:04:39]} 18. Nxg6 {[%emt 0:04:15]} Qxg6 {[%emt 0:00:53]} 19. Qb3+ {[%emt 0:01:35]} Kg7 {[%emt 0:01:32]} 20. Re1 {[%emt 0:00:05]} Nb6 {[%emt 0:00:42]} 21. Bd3 {[%emt 0:00:23]} Qf6 {[%emt 0:01:43]} 22. Re5 {[%emt 0:00:56]} h6 {[%emt 0:01:24]} 23. Rhe1 {[%emt 0:00:46]} Bd7 {[%emt 0:01:26]} 24. Re6 {[%emt 0:02:27]} Bxe6 {[%emt 0:03:21]} 25. Rxe6 {[%emt 0:00:02]} Qf7 {[%emt 0:01:59]} 26. Rg6+ {[%emt 0:00:06]} Qxg6 {[%emt 0:00:28]} 27. Bxg6 {[%emt 0:00:04]} Kxg6 {[%emt 0:00:09]} 28. Qg8+ {[%emt 0:01:12]} Kf6 {[%emt 0:02:17]} 29. Ne5 {[%emt 0:00:10]} Ke7 {[%emt 0:01:28]} 30. Qf7+ {[%emt 0:00:06]} Kd6 {[%emt 0:00:27]} 31. Qxb7 {[%emt 0:00:07]} Ke6 {[%emt 0:05:01]} 32. Nd7 {[%emt 0:00:21]} Rd8 {[%emt 0:01:52]} 33. Nxf8+ {[%emt 0:00:12]} Rxf8 {[%emt 0:00:08]} 34. Qxc6+ {[%emt 0:00:07]} Kf7 {[%emt 0:01:23]} 35. c4 {[%emt 0:00:10]} Rd8 {[%emt 0:01:34]} 36. d5 {[%emt 0:00:29]} Rc8 {[%emt 0:00:41]} 37. Qb7+ {[%emt 0:00:05]} Kf6 {[%emt 0:00:21]} 38. b3 {[%emt 0:00:19]} Ke5 {[%emt 0:01:19]} 39. Qe7+ {[%emt 0:00:46]} Kd4 {[%emt 0:01:32] Check Result:70.25} 40. d6 {[%emt 0:00:13]} 1-0